[Event "Titled Tuesday Blitz July 05 Early 2022"]
[White "Ladopoulos, Dimitrios"]
[Black "Cruz Mendez, Jean Marco"]
[WhiteFideId "4239580"]
[BlackFideId "3526402"]
[WhiteElo "2195"]
[BlackElo "2064"]
[Result "0-1"]
[Round "09"]
[TimeControl "180+1"]
[Date "2022.07.05"]
[WhiteClock "0:00:04"]
[BlackClock "0:00:21"]

1. Nf3 {[%clk 0:03:00]}  d5 {[%clk 0:02:59]} 2. c4 {[%clk 0:03:00]}  c6 {[%clk 0:02:58]} 3. d4 {[%clk 0:03:00]}  Nf6 {[%clk 0:02:57]} 4. Nc3 {[%clk 0:03:00]}  dxc4 {[%clk 0:02:56]} 5. a4 {[%clk 0:02:58]}  Bf5 {[%clk 0:02:55]} 6. e3 {[%clk 0:02:56]}  e6 {[%clk 0:02:50]} 7. Bxc4 {[%clk 0:02:55]}  Bb4 {[%clk 0:02:49]} 8. O-O {[%clk 0:02:55]}  O-O {[%clk 0:02:46]} 9. Qe2 {[%clk 0:02:54]}  Bg6 {[%clk 0:02:42]} 10. Ne5 {[%clk 0:02:50]}  Nbd7 {[%clk 0:02:38]} 11. Nxg6 {[%clk 0:02:49]}  hxg6 {[%clk 0:02:39]} 12. Rd1 {[%clk 0:02:46]}  Qe7 {[%clk 0:02:23]} 13. e4 {[%clk 0:02:38]}  e5 {[%clk 0:02:19]} 14. d5 {[%clk 0:02:27]}  Rfd8 {[%clk 0:02:15]} 15. dxc6 {[%clk 0:02:24]}  bxc6 {[%clk 0:02:14]} 16. Bg5 {[%clk 0:02:19]}  Nc5 {[%clk 0:02:11]} 17. h3 {[%clk 0:02:09]}  Rxd1+ {[%clk 0:02:03]} 18. Rxd1 {[%clk 0:02:07]}  Bxc3 {[%clk 0:02:03]} 19. bxc3 {[%clk 0:02:04]}  Nxa4 {[%clk 0:02:04]} 20. Qd2 {[%clk 0:01:48]}  Nc5 {[%clk 0:02:01]} 21. f3 {[%clk 0:01:46]}  Ncxe4 {[%clk 0:01:49]} 22. fxe4 {[%clk 0:01:00]}  Qc5+ {[%clk 0:01:49]} 23. Qf2 {[%clk 0:00:59]}  Qxf2+ {[%clk 0:01:46]} 24. Kxf2 {[%clk 0:00:56]}  Nxe4+ {[%clk 0:01:47]} 25. Ke3 {[%clk 0:00:57]}  Nxg5 {[%clk 0:01:47]} 26. h4 {[%clk 0:00:57]}  Ne6 {[%clk 0:01:14]} 27. Bxe6 {[%clk 0:00:04]}  fxe6 {[%clk 0:01:15]} 28. Ke4 {[%clk 0:00:04]}  a5 {[%clk 0:01:14]} 29. Kxe5 {[%clk 0:00:05]}  a4 {[%clk 0:01:15]} 30. Kxe6 {[%clk 0:00:02]}  Re8+ {[%clk 0:01:14]} 31. Kd7 {[%clk 0:00:01]}  Re3 {[%clk 0:01:15]} 32. c4 {[%clk 0:00:01]}  Rc3 {[%clk 0:01:12]} 33. Kxc6 {[%clk 0:00:01]}  Rxc4+ {[%clk 0:01:12]} 34. Kb5 {[%clk 0:00:02]}  Rxh4 {[%clk 0:01:13]} 35. Rd5 {[%clk 0:00:02]}  Rg4 {[%clk 0:01:13]} 36. Rd3 {[%clk 0:00:01]}  Kh7 {[%clk 0:01:11]} 37. g3 {[%clk 0:00:01]}  Kh6 {[%clk 0:01:10]} 38. Kc5 {[%clk 0:00:01]}  Kh5 {[%clk 0:01:07]} 39. Kd5 {[%clk 0:00:02]}  Rb4 {[%clk 0:01:06]} 40. Ke6 {[%clk 0:00:01]}  Rb3 {[%clk 0:01:02]} 41. Rd5+ {[%clk 0:00:01]}  g5 {[%clk 0:01:02]} 42. g4+ {[%clk 0:00:01]}  Kh4 {[%clk 0:01:01]} 43. Kf5 {[%clk 0:00:01]}  a3 {[%clk 0:00:58]} 44. Ra5 {[%clk 0:00:01]}  Rf3+ {[%clk 0:00:55]} 45. Kg6 {[%clk 0:00:02]}  Rb3 {[%clk 0:00:44]} 46. Ra4 {[%clk 0:00:01]}  Rb6+ {[%clk 0:00:28]} 47. Kxg7 {[%clk 0:00:01]}  a2 {[%clk 0:00:29]} 48. Rxa2 {[%clk 0:00:01]}  Kxg4 {[%clk 0:00:29]} 49. Ra4+ {[%clk 0:00:01]}  Kh3 {[%clk 0:00:29]} 50. Ra3+ {[%clk 0:00:02]}  Kh4 {[%clk 0:00:29]} 51. Ra1 {[%clk 0:00:02]}  g4 {[%clk 0:00:30]} 52. Rh1+ {[%clk 0:00:02]}  Kg5 {[%clk 0:00:29]} 53. Rg1 {[%clk 0:00:02]}  Rb3 {[%clk 0:00:26]} 54. Kf7 {[%clk 0:00:02]}  Kf4 {[%clk 0:00:26]} 55. Ke6 {[%clk 0:00:03]}  g3 {[%clk 0:00:26]} 56. Kd5 {[%clk 0:00:03]}  Kf3 {[%clk 0:00:25]} 57. Kd4 {[%clk 0:00:04]}  Kf2 {[%clk 0:00:24]} 58. Ra1 {[%clk 0:00:05]}  Rb2 {[%clk 0:00:22]} 59. Ke4 {[%clk 0:00:04]}  g2 {[%clk 0:00:21]} 0-1


[Site "https://www.chess.com"]

[Event "Titled Tuesday Blitz July 05 Early 2022"]
[White "Lazavik, Denis"]
[Black "Vakhlamov, Igor L."]
[WhiteFideId "13515110"]
[BlackFideId "24126748"]
[WhiteElo "2437"]
[BlackElo "2401"]
[Result "1-0"]
[Round "09"]
[TimeControl "180+1"]
[Date "2022.07.05"]
[WhiteClock "0:00:51"]
[BlackClock "0:00:08"]

1. d4 {[%clk 0:03:00]}  d5 {[%clk 0:02:58]} 2. c4 {[%clk 0:03:01]}  e6 {[%clk 0:02:58]} 3. Nf3 {[%clk 0:03:01]}  Nf6 {[%clk 0:02:58]} 4. Nc3 {[%clk 0:03:02]}  c5 {[%clk 0:02:56]} 5. cxd5 {[%clk 0:03:02]}  cxd4 {[%clk 0:02:56]} 6. Qxd4 {[%clk 0:02:56]}  exd5 {[%clk 0:02:55]} 7. Bg5 {[%clk 0:02:56]}  Be7 {[%clk 0:02:54]} 8. e3 {[%clk 0:02:57]}  O-O {[%clk 0:02:54]} 9. Rd1 {[%clk 0:02:57]}  Be6 {[%clk 0:02:51]} 10. Bd3 {[%clk 0:02:55]}  h6 {[%clk 0:02:47]} 11. Bh4 {[%clk 0:02:55]}  Nc6 {[%clk 0:02:47]} 12. Qa4 {[%clk 0:02:54]}  Qb6 {[%clk 0:02:47]} 13. Qb5 {[%clk 0:02:54]}  Rfd8 {[%clk 0:02:29]} 14. O-O {[%clk 0:02:42]}  g5 {[%clk 0:01:51]} 15. Bg3 {[%clk 0:02:41]}  Qxb5 {[%clk 0:01:52]} 16. Nxb5 {[%clk 0:02:39]}  Rac8 {[%clk 0:01:42]} 17. Nfd4 {[%clk 0:02:37]}  Nxd4 {[%clk 0:01:33]} 18. Nxd4 {[%clk 0:02:37]}  Ne4 {[%clk 0:01:29]} 19. Be5 {[%clk 0:02:34]}  Nd6 {[%clk 0:01:16]} 20. b3 {[%clk 0:02:32]}  Bd7 {[%clk 0:01:09]} 21. Rc1 {[%clk 0:02:26]}  f6 {[%clk 0:01:08]} 22. Bxd6 {[%clk 0:02:03]}  Bxd6 {[%clk 0:01:09]} 23. Bf5 {[%clk 0:02:03]}  Rc5 {[%clk 0:00:44]} 24. Bxd7 {[%clk 0:01:52]}  Rxd7 {[%clk 0:00:41]} 25. Rxc5 {[%clk 0:01:52]}  Bxc5 {[%clk 0:00:41]} 26. Nf5 {[%clk 0:01:52]}  Kh7 {[%clk 0:00:39]} 27. Rc1 {[%clk 0:01:50]}  Bb6 {[%clk 0:00:39]} 28. g4 {[%clk 0:01:49]}  d4 {[%clk 0:00:33]} 29. Rd1 {[%clk 0:01:25]}  d3 {[%clk 0:00:27]} 30. Nd4 {[%clk 0:01:24]}  Kg6 {[%clk 0:00:24]} 31. Rxd3 {[%clk 0:01:24]}  Bxd4 {[%clk 0:00:25]} 32. Rxd4 {[%clk 0:01:23]}  Rc7 {[%clk 0:00:26]} 33. a4 {[%clk 0:01:14]}  h5 {[%clk 0:00:26]} 34. h3 {[%clk 0:01:12]}  hxg4 {[%clk 0:00:26]} 35. hxg4 {[%clk 0:01:12]}  b6 {[%clk 0:00:27]} 36. b4 {[%clk 0:01:04]}  Rc2 {[%clk 0:00:22]} 37. b5 {[%clk 0:01:02]}  Ra2 {[%clk 0:00:22]} 38. Kg2 {[%clk 0:01:02]}  Ra3 {[%clk 0:00:22]} 39. Kf3 {[%clk 0:01:02]}  Ra2 {[%clk 0:00:23]} 40. Rc4 {[%clk 0:01:02]}  Ra3 {[%clk 0:00:22]} 41. Ke4 {[%clk 0:01:01]}  Ra2 {[%clk 0:00:22]} 42. f4 {[%clk 0:01:01]}  gxf4 {[%clk 0:00:23]} 43. exf4 {[%clk 0:01:02]}  Rg2 {[%clk 0:00:23]} 44. Rc7 {[%clk 0:00:55]}  Rxg4 {[%clk 0:00:17]} 45. Rxa7 {[%clk 0:00:55]}  Rg2 {[%clk 0:00:17]} 46. Kd5 {[%clk 0:00:49]}  Rc2 {[%clk 0:00:15]} 47. Ra6 {[%clk 0:00:49]}  Ra2 {[%clk 0:00:10]} 48. Kc6 {[%clk 0:00:48]}  Rf2 {[%clk 0:00:10]} 49. Kxb6 {[%clk 0:00:48]}  Rxf4 {[%clk 0:00:10]} 50. a5 {[%clk 0:00:48]}  Rc4 {[%clk 0:00:09]} 51. Ra8 {[%clk 0:00:48]}  f5 {[%clk 0:00:09]} 52. a6 {[%clk 0:00:48]}  f4 {[%clk 0:00:09]} 53. a7 {[%clk 0:00:48]}  Ra4 {[%clk 0:00:09]} 54. Rg8+ {[%clk 0:00:48]}  Kf7 {[%clk 0:00:08]} 55. a8=Q {[%clk 0:00:49]}  Rxa8 {[%clk 0:00:07]} 56. Rxa8 {[%clk 0:00:50]}  f3 {[%clk 0:00:08]} 57. Ra3 {[%clk 0:00:50]}  f2 {[%clk 0:00:08]} 58. Rf3+ {[%clk 0:00:51]} 1-0


[Site "https://www.chess.com"]

[Event "Titled Tuesday Blitz July 05 Early 2022"]
[White "Leiva, Gianmarco"]
[Black "Lawson, Eric"]
[WhiteFideId "3804399"]
[BlackFideId "2604116"]
[WhiteElo "2323"]
[BlackElo "2459"]
[Result "0-1"]
[Round "09"]
[TimeControl "180+1"]
[Date "2022.07.05"]
[WhiteClock "0:00:02"]
[BlackClock "0:00:43"]

1. e4 {[%clk 0:02:50]}  c5 {[%clk 0:02:59]} 2. Nf3 {[%clk 0:02:50]}  Nc6 {[%clk 0:02:59]} 3. d4 {[%clk 0:02:49]}  cxd4 {[%clk 0:03:00]} 4. Nxd4 {[%clk 0:02:50]}  Nf6 {[%clk 0:03:00]} 5. Nc3 {[%clk 0:02:50]}  e5 {[%clk 0:03:00]} 6. Ndb5 {[%clk 0:02:44]}  d6 {[%clk 0:03:00]} 7. Bg5 {[%clk 0:02:42]}  a6 {[%clk 0:03:00]} 8. Na3 {[%clk 0:02:42]}  b5 {[%clk 0:03:01]} 9. Nd5 {[%clk 0:02:40]}  Be7 {[%clk 0:03:01]} 10. Bxf6 {[%clk 0:02:39]}  Bxf6 {[%clk 0:03:01]} 11. c4 {[%clk 0:02:38]}  b4 {[%clk 0:03:01]} 12. Nc2 {[%clk 0:02:39]}  a5 {[%clk 0:03:01]} 13. Be2 {[%clk 0:02:37]}  Bg5 {[%clk 0:02:59]} 14. O-O {[%clk 0:02:37]}  O-O {[%clk 0:02:57]} 15. Bg4 {[%clk 0:02:34]}  Be6 {[%clk 0:02:55]} 16. Bf5 {[%clk 0:02:20]}  g6 {[%clk 0:02:53]} 17. Bg4 {[%clk 0:02:17]}  f5 {[%clk 0:02:50]} 18. Bh3 {[%clk 0:02:16]}  Kh8 {[%clk 0:02:47]} 19. Re1 {[%clk 0:02:15]}  Ra7 {[%clk 0:02:43]} 20. Qd3 {[%clk 0:02:15]}  Raf7 {[%clk 0:02:36]} 21. exf5 {[%clk 0:02:04]}  Bxf5 {[%clk 0:02:29]} 22. Bxf5 {[%clk 0:02:04]}  gxf5 {[%clk 0:02:27]} 23. Rad1 {[%clk 0:01:45]}  Rg7 {[%clk 0:02:18]} 24. a3 {[%clk 0:01:35]}  e4 {[%clk 0:02:09]} 25. Qh3 {[%clk 0:01:34]}  Ne5 {[%clk 0:02:06]} 26. Nd4 {[%clk 0:01:17]}  Qd7 {[%clk 0:01:30]} 27. axb4 {[%clk 0:01:12]}  axb4 {[%clk 0:01:29]} 28. Nxb4 {[%clk 0:01:11]}  Nxc4 {[%clk 0:01:27]} 29. Qc3 {[%clk 0:00:58]}  Ne5 {[%clk 0:01:18]} 30. Ndc6 {[%clk 0:00:48]}  Nf3+ {[%clk 0:01:14]} 31. Kh1 {[%clk 0:00:44]}  Bf6 {[%clk 0:01:09]} 32. Qc4 {[%clk 0:00:41]}  Nxe1 {[%clk 0:01:03]} 33. Rxe1 {[%clk 0:00:41]}  Bxb2 {[%clk 0:01:00]} 34. Nd4 {[%clk 0:00:33]}  Rc8 {[%clk 0:00:48]} 35. Qd5 {[%clk 0:00:32]}  Rc5 {[%clk 0:00:44]} 36. Qa8+ {[%clk 0:00:02]}  Rg8 {[%clk 0:00:45]} 37. Qa5 {[%clk 0:00:02]}  Rxa5 {[%clk 0:00:43]} 0-1


[Site "https://www.chess.com"]

[Event "Titled Tuesday Blitz July 05 Early 2022"]
[White "Minko, Dmitry"]
[Black "Prokofiev, Valentyn"]
[WhiteFideId "24188468"]
[BlackFideId "14160161"]
[WhiteElo "1928"]
[BlackElo "2142"]
[Result "0-1"]
[Round "09"]
[TimeControl "180+1"]
[Date "2022.07.05"]
[WhiteClock "0:00:03"]
[BlackClock "0:01:16"]

1. e4 {[%clk 0:03:00]}  c5 {[%clk 0:02:59]} 2. Nf3 {[%clk 0:03:00]}  e6 {[%clk 0:02:58]} 3. d4 {[%clk 0:03:00]}  cxd4 {[%clk 0:02:59]} 4. Nxd4 {[%clk 0:03:01]}  a6 {[%clk 0:03:00]} 5. Nc3 {[%clk 0:02:59]}  Qc7 {[%clk 0:03:00]} 6. a3 {[%clk 0:02:58]}  b5 {[%clk 0:02:59]} 7. Be3 {[%clk 0:02:58]}  Bb7 {[%clk 0:02:58]} 8. Qd2 {[%clk 0:02:57]}  Nf6 {[%clk 0:02:56]} 9. f3 {[%clk 0:02:57]}  b4 {[%clk 0:02:47]} 10. Na4 {[%clk 0:01:58]}  bxa3 {[%clk 0:02:42]} 11. bxa3 {[%clk 0:01:58]}  Nc6 {[%clk 0:02:35]} 12. Bd3 {[%clk 0:01:18]}  Nxd4 {[%clk 0:02:15]} 13. Bxd4 {[%clk 0:01:18]}  Bc6 {[%clk 0:02:16]} 14. Nb6 {[%clk 0:01:17]}  Rb8 {[%clk 0:02:16]} 15. Nc4 {[%clk 0:01:17]}  Bb5 {[%clk 0:02:14]} 16. Ne3 {[%clk 0:01:12]}  Bd6 {[%clk 0:02:09]} 17. c4 {[%clk 0:01:03]}  Bc6 {[%clk 0:02:07]} 18. g3 {[%clk 0:01:03]}  Rb3 {[%clk 0:02:01]} 19. Bc2 {[%clk 0:00:59]}  Rxa3 {[%clk 0:01:59]} 20. O-O {[%clk 0:00:55]}  Rxa1 {[%clk 0:01:54]} 21. Rxa1 {[%clk 0:00:55]}  Be5 {[%clk 0:01:47]} 22. Rxa6 {[%clk 0:00:51]}  O-O {[%clk 0:01:43]} 23. Bc5 {[%clk 0:00:35]}  Rb8 {[%clk 0:01:27]} 24. f4 {[%clk 0:00:28]}  Nxe4 {[%clk 0:01:15]} 25. Bxe4 {[%clk 0:00:22]}  Bxe4 {[%clk 0:01:16]} 26. Ba7 {[%clk 0:00:06]}  Rb1+ {[%clk 0:01:16]} 27. Nf1 {[%clk 0:00:06]}  Qxc4 {[%clk 0:01:16]} 28. Ra2 {[%clk 0:00:03]}  Qxf1# {[%clk 0:01:16]} 0-1


[Site "https://www.chess.com"]

[Event "Titled Tuesday Blitz July 05 Early 2022"]
[White "Mitrabha, Guha"]
[Black "Kamsky, Gata"]
[WhiteFideId "5057000"]
[BlackFideId "2000024"]
[WhiteElo "2499"]
[BlackElo "2645"]
[Result "0-1"]
[Round "09"]
[TimeControl "180+1"]
[Date "2022.07.05"]
[WhiteClock "0:00:04"]
[BlackClock "0:00:43"]

1. d4 {[%clk 0:02:58]}  d5 {[%clk 0:02:52]} 2. Nf3 {[%clk 0:02:57]}  Nf6 {[%clk 0:02:46]} 3. c4 {[%clk 0:02:57]}  c6 {[%clk 0:02:46]} 4. g3 {[%clk 0:02:57]}  g6 {[%clk 0:02:45]} 5. Bg2 {[%clk 0:02:56]}  Bg7 {[%clk 0:02:45]} 6. O-O {[%clk 0:02:57]}  O-O {[%clk 0:02:45]} 7. Qb3 {[%clk 0:02:54]}  Qb6 {[%clk 0:02:44]} 8. Nc3 {[%clk 0:02:52]}  Rd8 {[%clk 0:02:42]} 9. Rd1 {[%clk 0:02:42]}  Bf5 {[%clk 0:02:20]} 10. Ne1 {[%clk 0:01:51]}  dxc4 {[%clk 0:02:19]} 11. Qxc4 {[%clk 0:01:51]}  Na6 {[%clk 0:02:17]} 12. e4 {[%clk 0:01:40]}  Be6 {[%clk 0:02:03]} 13. Qa4 {[%clk 0:01:35]}  Ne8 {[%clk 0:01:52]} 14. Be3 {[%clk 0:01:07]}  Qxb2 {[%clk 0:01:48]} 15. Rdc1 {[%clk 0:00:58]}  Qb4 {[%clk 0:01:46]} 16. Qxb4 {[%clk 0:00:57]}  Nxb4 {[%clk 0:01:46]} 17. Rab1 {[%clk 0:00:58]}  Nxa2 {[%clk 0:01:40]} 18. Nxa2 {[%clk 0:00:54]}  Bxa2 {[%clk 0:01:40]} 19. Rxb7 {[%clk 0:00:54]}  Bxd4 {[%clk 0:01:36]} 20. Bxd4 {[%clk 0:00:43]}  Rxd4 {[%clk 0:01:35]} 21. Nc2 {[%clk 0:00:43]}  Rd2 {[%clk 0:01:29]} 22. Nb4 {[%clk 0:00:42]}  Rb2 {[%clk 0:01:05]} 23. Ra1 {[%clk 0:00:19]}  Be6 {[%clk 0:00:59]} 24. e5 {[%clk 0:00:18]}  Bd5 {[%clk 0:00:50]} 25. Bf1 {[%clk 0:00:05]}  e6 {[%clk 0:00:47]} 26. Ba6 {[%clk 0:00:04]}  Bf3 {[%clk 0:00:45]} 27. h4 {[%clk 0:00:03]}  c5 {[%clk 0:00:45]} 28. Nd3 {[%clk 0:00:03]}  Rxb7 {[%clk 0:00:43]} 29. Bxb7 {[%clk 0:00:03]}  Bxb7 {[%clk 0:00:43]} 30. Nxc5 {[%clk 0:00:04]}  Bd5 {[%clk 0:00:43]} 0-1


[Site "https://www.chess.com"]

[Event "Titled Tuesday Blitz July 05 Early 2022"]
[White "Naroditsky, Daniel"]
[Black "Oparin, Grigoriy"]
[WhiteFideId "2026961"]
[BlackFideId "24125890"]
[WhiteElo "2608"]
[BlackElo "2639"]
[Result "1-0"]
[Round "09"]
[TimeControl "180+1"]
[Date "2022.07.05"]
[WhiteClock "0:00:11"]
[BlackClock "0:00:04"]

1. e4 {[%clk 0:03:00]}  c5 {[%clk 0:03:00]} 2. Nf3 {[%clk 0:03:00]}  d6 {[%clk 0:03:00]} 3. Bb5+ {[%clk 0:03:00]}  Bd7 {[%clk 0:03:00]} 4. c4 {[%clk 0:03:01]}  Nf6 {[%clk 0:02:58]} 5. Nc3 {[%clk 0:03:01]}  e6 {[%clk 0:02:54]} 6. O-O {[%clk 0:03:00]}  Be7 {[%clk 0:02:55]} 7. d4 {[%clk 0:03:00]}  cxd4 {[%clk 0:02:55]} 8. Nxd4 {[%clk 0:03:01]}  O-O {[%clk 0:02:55]} 9. Bxd7 {[%clk 0:03:01]}  Nbxd7 {[%clk 0:02:55]} 10. b3 {[%clk 0:03:02]}  a6 {[%clk 0:02:50]} 11. Bb2 {[%clk 0:03:02]}  Re8 {[%clk 0:02:50]} 12. Qf3 {[%clk 0:02:50]}  Rc8 {[%clk 0:02:48]} 13. Rac1 {[%clk 0:02:49]}  Qa5 {[%clk 0:02:47]} 14. Rfd1 {[%clk 0:02:46]}  Ne5 {[%clk 0:02:44]} 15. Qh3 {[%clk 0:02:46]}  Ng6 {[%clk 0:02:43]} 16. Qf3 {[%clk 0:02:17]}  Qg5 {[%clk 0:02:33]} 17. g3 {[%clk 0:02:12]}  h5 {[%clk 0:02:29]} 18. Kh1 {[%clk 0:02:09]}  Qg4 {[%clk 0:02:25]} 19. Qg2 {[%clk 0:02:03]}  h4 {[%clk 0:02:08]} 20. h3 {[%clk 0:02:03]}  Qg5 {[%clk 0:02:00]} 21. g4 {[%clk 0:01:52]}  Nd7 {[%clk 0:01:52]} 22. Nce2 {[%clk 0:01:48]}  Qh6 {[%clk 0:01:40]} 23. Rf1 {[%clk 0:01:27]}  Bg5 {[%clk 0:01:37]} 24. Rcd1 {[%clk 0:01:27]}  Nde5 {[%clk 0:01:32]} 25. a4 {[%clk 0:01:15]}  Red8 {[%clk 0:01:22]} 26. Rg1 {[%clk 0:01:12]}  Nf4 {[%clk 0:00:55]} 27. Nxf4 {[%clk 0:01:11]}  Bxf4 {[%clk 0:00:56]} 28. Ne2 {[%clk 0:01:12]}  Qg5 {[%clk 0:00:53]} 29. Rgf1 {[%clk 0:00:53]}  b5 {[%clk 0:00:52]} 30. Nxf4 {[%clk 0:00:44]}  Qxf4 {[%clk 0:00:52]} 31. Bc1 {[%clk 0:00:40]}  Qf6 {[%clk 0:00:48]} 32. f4 {[%clk 0:00:39]}  Nc6 {[%clk 0:00:39]} 33. axb5 {[%clk 0:00:37]}  axb5 {[%clk 0:00:40]} 34. cxb5 {[%clk 0:00:37]}  Nb4 {[%clk 0:00:40]} 35. g5 {[%clk 0:00:34]}  Qe7 {[%clk 0:00:33]} 36. f5 {[%clk 0:00:34]}  exf5 {[%clk 0:00:32]} 37. exf5 {[%clk 0:00:32]}  Rc2 {[%clk 0:00:33]} 38. Bd2 {[%clk 0:00:32]}  Nd3 {[%clk 0:00:23]} 39. g6 {[%clk 0:00:32]}  Ne5 {[%clk 0:00:15]} 40. f6 {[%clk 0:00:29]}  gxf6 {[%clk 0:00:13]} 41. gxf7+ {[%clk 0:00:30]}  Kxf7 {[%clk 0:00:14]} 42. Qd5+ {[%clk 0:00:24]}  Ke8 {[%clk 0:00:07]} 43. Rg1 {[%clk 0:00:21]}  Kd7 {[%clk 0:00:07]} 44. b6 {[%clk 0:00:17]}  Rb8 {[%clk 0:00:05]} 45. Ra1 {[%clk 0:00:16]}  Rxb6 {[%clk 0:00:02]} 46. Ra7+ {[%clk 0:00:14]}  Rc7 {[%clk 0:00:03]} 47. Rxc7+ {[%clk 0:00:15]}  Kxc7 {[%clk 0:00:04]} 48. Ba5 {[%clk 0:00:14]}  Nd7 {[%clk 0:00:04]} 49. Bxb6+ {[%clk 0:00:11]}  Nxb6 {[%clk 0:00:05]} 50. Rc1+ {[%clk 0:00:11]}  Kb8 {[%clk 0:00:04]} 51. Qc6 {[%clk 0:00:11]} 1-0


[Site "https://www.chess.com"]

[Event "Titled Tuesday Blitz July 05 Early 2022"]
[White "Pesotskiy, Mikhail"]
[Black "Kovalev, Vladislav"]
[WhiteFideId "34164453"]
[BlackFideId "13504398"]
[WhiteElo "2010"]
[BlackElo "2530"]
[Result "0-1"]
[Round "09"]
[TimeControl "180+1"]
[Date "2022.07.05"]
[WhiteClock "0:00:01"]
[BlackClock "0:00:12"]

1. d4 {[%clk 0:02:59]}  Nf6 {[%clk 0:03:00]} 2. c4 {[%clk 0:02:59]}  e6 {[%clk 0:03:00]} 3. Nc3 {[%clk 0:03:00]}  Bb4 {[%clk 0:03:01]} 4. Qc2 {[%clk 0:03:01]}  b6 {[%clk 0:03:01]} 5. e4 {[%clk 0:03:00]}  c5 {[%clk 0:03:01]} 6. d5 {[%clk 0:03:00]}  Qe7 {[%clk 0:03:01]} 7. Be2 {[%clk 0:02:21]}  exd5 {[%clk 0:03:01]} 8. exd5 {[%clk 0:02:21]}  O-O {[%clk 0:02:56]} 9. Be3 {[%clk 0:02:21]}  Ne4 {[%clk 0:02:49]} 10. Nf3 {[%clk 0:02:17]}  d6 {[%clk 0:02:49]} 11. O-O {[%clk 0:02:16]}  Bxc3 {[%clk 0:02:49]} 12. bxc3 {[%clk 0:02:15]}  f5 {[%clk 0:02:44]} 13. Bd3 {[%clk 0:02:13]}  Nd7 {[%clk 0:02:42]} 14. Rfe1 {[%clk 0:02:12]}  h6 {[%clk 0:02:33]} 15. Nd2 {[%clk 0:02:09]}  Ne5 {[%clk 0:02:13]} 16. Nxe4 {[%clk 0:01:53]}  Nxd3 {[%clk 0:02:10]} 17. Qxd3 {[%clk 0:01:17]}  fxe4 {[%clk 0:02:09]} 18. Bd2 {[%clk 0:01:18]}  exd3 {[%clk 0:01:52]} 19. Rxe7 {[%clk 0:01:18]}  Ba6 {[%clk 0:01:53]} 20. Re4 {[%clk 0:01:14]}  Rae8 {[%clk 0:01:28]} 21. Rae1 {[%clk 0:01:13]}  Kf7 {[%clk 0:01:26]} 22. Rf4+ {[%clk 0:00:41]}  Kg8 {[%clk 0:01:25]} 23. Rfe4 {[%clk 0:00:41]}  Rxe4 {[%clk 0:01:26]} 24. Rxe4 {[%clk 0:00:42]}  Kf7 {[%clk 0:01:26]} 25. Kf1 {[%clk 0:00:15]}  Re8 {[%clk 0:01:21]} 26. f3 {[%clk 0:00:16]}  Re7 {[%clk 0:00:58]} 27. a3 {[%clk 0:00:14]}  Ke8 {[%clk 0:00:56]} 28. Kf2 {[%clk 0:00:08]}  Bxc4 {[%clk 0:00:53]} 29. Bf4 {[%clk 0:00:01]}  Bxd5 {[%clk 0:00:48]} 30. Re3 {[%clk 0:00:01]}  Rxe3 {[%clk 0:00:23]} 31. Kxe3 {[%clk 0:00:02]}  Kd7 {[%clk 0:00:23]} 32. Kxd3 {[%clk 0:00:03]}  b5 {[%clk 0:00:24]} 33. Be3 {[%clk 0:00:03]}  Ke6 {[%clk 0:00:23]} 34. h4 {[%clk 0:00:02]}  h5 {[%clk 0:00:23]} 35. Bf4 {[%clk 0:00:02]}  g6 {[%clk 0:00:23]} 36. Be3 {[%clk 0:00:02]}  Bc4+ {[%clk 0:00:22]} 37. Kd2 {[%clk 0:00:02]}  a6 {[%clk 0:00:22]} 38. g3 {[%clk 0:00:01]}  Bd5 {[%clk 0:00:22]} 39. f4 {[%clk 0:00:01]}  Kf5 {[%clk 0:00:22]} 40. Ke2 {[%clk 0:00:01]}  Ke4 {[%clk 0:00:23]} 41. Kf2 {[%clk 0:00:02]}  Be6 {[%clk 0:00:23]} 42. Ke2 {[%clk 0:00:02]}  Bg4+ {[%clk 0:00:23]} 43. Kd2 {[%clk 0:00:03]}  Kf3 {[%clk 0:00:23]} 44. f5 {[%clk 0:00:03]}  Bxf5 {[%clk 0:00:19]} 45. Bf4 {[%clk 0:00:03]}  d5 {[%clk 0:00:19]} 46. Bd6 {[%clk 0:00:04]}  d4 {[%clk 0:00:09]} 47. Bxc5 {[%clk 0:00:03]}  Kxg3 {[%clk 0:00:10]} 48. Be7 {[%clk 0:00:03]}  d3 {[%clk 0:00:09]} 49. Bg5 {[%clk 0:00:04]}  Kf3 {[%clk 0:00:09]} 50. Be7 {[%clk 0:00:04]}  Ke4 {[%clk 0:00:09]} 51. Bg5 {[%clk 0:00:05]}  Kd5 {[%clk 0:00:10]} 52. Be7 {[%clk 0:00:03]}  Kc4 {[%clk 0:00:11]} 53. Bf8 {[%clk 0:00:03]}  Kb3 {[%clk 0:00:11]} 54. Be7 {[%clk 0:00:03]}  a5 {[%clk 0:00:11]} 55. Bf8 {[%clk 0:00:03]}  g5 {[%clk 0:00:11]} 56. hxg5 {[%clk 0:00:03]}  h4 {[%clk 0:00:12]} 57. Bd6 {[%clk 0:00:01]}  h3 {[%clk 0:00:12]} 0-1


[Site "https://www.chess.com"]

[Event "Titled Tuesday Blitz July 05 Early 2022"]
[White "Shimanov, Aleksandr"]
[Black "Chernobay, Artem"]
[WhiteFideId "4198603"]
[BlackFideId "4167406"]
[WhiteElo "2605"]
[BlackElo "2473"]
[Result "1-0"]
[Round "09"]
[TimeControl "180+1"]
[Date "2022.07.05"]
[WhiteClock "0:00:11"]
[BlackClock "0:00:05"]

1. e4 {[%clk 0:03:00]}  e6 {[%clk 0:02:48]} 2. d4 {[%clk 0:02:55]}  d5 {[%clk 0:02:48]} 3. Nc3 {[%clk 0:02:56]}  Nf6 {[%clk 0:02:47]} 4. Bg5 {[%clk 0:02:53]}  dxe4 {[%clk 0:02:47]} 5. Nxe4 {[%clk 0:02:53]}  Be7 {[%clk 0:02:47]} 6. Nxf6+ {[%clk 0:02:49]}  Bxf6 {[%clk 0:02:47]} 7. Bxf6 {[%clk 0:02:50]}  Qxf6 {[%clk 0:02:48]} 8. Qd3 {[%clk 0:02:49]}  c5 {[%clk 0:02:26]} 9. O-O-O {[%clk 0:02:31]}  Nc6 {[%clk 0:02:03]} 10. dxc5 {[%clk 0:02:11]}  O-O {[%clk 0:02:02]} 11. Qe3 {[%clk 0:02:11]}  e5 {[%clk 0:01:51]} 12. Nf3 {[%clk 0:02:07]}  Bg4 {[%clk 0:01:37]} 13. Rd6 {[%clk 0:02:03]}  Qe7 {[%clk 0:01:32]} 14. Bc4 {[%clk 0:01:59]}  Rac8 {[%clk 0:01:26]} 15. a3 {[%clk 0:01:50]}  Rc7 {[%clk 0:01:09]} 16. Re1 {[%clk 0:01:47]}  Bxf3 {[%clk 0:01:01]} 17. gxf3 {[%clk 0:01:48]}  Qh4 {[%clk 0:01:00]} 18. Bd5 {[%clk 0:01:43]}  Nd4 {[%clk 0:00:55]} 19. Qxe5 {[%clk 0:00:54]}  Qxf2 {[%clk 0:00:54]} 20. Bxf7+ {[%clk 0:00:53]}  Rcxf7 {[%clk 0:00:39]} 21. Rxd4 {[%clk 0:00:53]}  Qxf3 {[%clk 0:00:35]} 22. Rd3 {[%clk 0:00:43]}  Qf2 {[%clk 0:00:33]} 23. b4 {[%clk 0:00:36]}  a5 {[%clk 0:00:29]} 24. Kb2 {[%clk 0:00:34]}  axb4 {[%clk 0:00:28]} 25. axb4 {[%clk 0:00:35]}  Rf4 {[%clk 0:00:20]} 26. Re4 {[%clk 0:00:34]}  Rxe4 {[%clk 0:00:14]} 27. Qxe4 {[%clk 0:00:35]}  Qxh2 {[%clk 0:00:14]} 28. Qxb7 {[%clk 0:00:32]}  Qf4 {[%clk 0:00:15]} 29. Qd5+ {[%clk 0:00:27]}  Kh8 {[%clk 0:00:15]} 30. Rd4 {[%clk 0:00:27]}  Qf6 {[%clk 0:00:15]} 31. c6 {[%clk 0:00:25]}  h6 {[%clk 0:00:13]} 32. c7 {[%clk 0:00:24]}  Kh7 {[%clk 0:00:07]} 33. Qd8 {[%clk 0:00:21]}  Qf5 {[%clk 0:00:07]} 34. Rc4 {[%clk 0:00:17]}  Qe5+ {[%clk 0:00:07]} 35. Rc3 {[%clk 0:00:17]}  Qf4 {[%clk 0:00:04]} 36. Qxf8 {[%clk 0:00:08]}  Qxf8 {[%clk 0:00:04]} 37. c8=Q {[%clk 0:00:08]}  Qxb4+ {[%clk 0:00:05]} 38. Rb3 {[%clk 0:00:09]}  Qd4+ {[%clk 0:00:05]} 39. Qc3 {[%clk 0:00:09]}  Qf2 {[%clk 0:00:05]} 40. Qe3 {[%clk 0:00:09]}  Qf6+ {[%clk 0:00:04]} 41. Qc3 {[%clk 0:00:09]}  Qd6 {[%clk 0:00:04]} 42. Qd3+ {[%clk 0:00:10]}  Qxd3 {[%clk 0:00:05]} 43. Rxd3 {[%clk 0:00:11]} 1-0


[Site "https://www.chess.com"]